[Event "*** SCC Grand Prix: Titled Tuesday Blitz"]
[Site "Chess.com"]
[Date "2020.09.29"]
[Round "4"]
[White "Koksik_13"]
[Black "r31415"]
[Result "1-0"]
[WhiteElo "2659"]
[BlackElo "2458"]
[TimeControl "180+1"]
[EndTime "10:39:42 PDT"]
[Termination "Koksik_13 won on time"]

1. d4 {[%clk 0:02:59]} 1... Nf6 {[%clk 0:02:59.8]} 2. Nc3 {[%clk 0:02:59]} 2...
g6 {[%clk 0:02:59.5]} 3. e4 {[%clk 0:02:58.9]} 3... d6 {[%clk 0:02:59.8]} 4. Bg5
{[%clk 0:02:59.1]} 4... c6 {[%clk 0:02:59.6]} 5. f4 {[%clk 0:02:59.3]} 5... b5
{[%clk 0:02:59]} 6. a3 {[%clk 0:02:58.8]} 6... Bg7 {[%clk 0:02:52.7]} 7. Nf3
{[%clk 0:02:59.1]} 7... a6 {[%clk 0:02:44.7]} 8. e5 {[%clk 0:02:58.1]} 8... Nd5
{[%clk 0:02:43.3]} 9. Nxd5 {[%clk 0:02:55.9]} 9... cxd5 {[%clk 0:02:43.3]} 10.
Bd3 {[%clk 0:02:55.7]} 10... Nc6 {[%clk 0:02:33.5]} 11. O-O {[%clk 0:02:54.9]}
11... O-O {[%clk 0:02:30.1]} 12. h3 {[%clk 0:02:52.9]} 12... dxe5 {[%clk
0:02:19.1]} 13. fxe5 {[%clk 0:02:52.2]} 13... f6 {[%clk 0:02:19.4]} 14. exf6
{[%clk 0:02:44.3]} 14... exf6 {[%clk 0:02:12.8]} 15. Bf4 {[%clk 0:02:44.7]}
15... Re8 {[%clk 0:02:04.8]} 16. Qd2 {[%clk 0:02:43.7]} 16... Qb6 {[%clk
0:02:00.9]} 17. c3 {[%clk 0:02:43.5]} 17... Na5 {[%clk 0:02:01.4]} 18. Rae1
{[%clk 0:02:42.5]} 18... Bd7 {[%clk 0:01:59.1]} 19. h4 {[%clk 0:02:40.6]} 19...
Bg4 {[%clk 0:01:55]} 20. Nh2 {[%clk 0:02:38.7]} 20... Bd7 {[%clk 0:01:52.4]} 21.
h5 {[%clk 0:02:38.8]} 21... Nc4 {[%clk 0:01:35.7]} 22. Qc2 {[%clk 0:02:35.2]}
22... f5 {[%clk 0:01:35.5]} 23. Nf3 {[%clk 0:02:30]} 23... a5 {[%clk 0:01:23.1]}
24. h6 {[%clk 0:02:29.7]} 24... Bf6 {[%clk 0:01:18.6]} 25. Bxc4 {[%clk
0:02:30.1]} 25... bxc4 {[%clk 0:01:12.2]} 26. Be5 {[%clk 0:02:30.4]} 26... Be7
{[%clk 0:00:53.7]} 27. Rf2 {[%clk 0:02:27.3]} 27... Bf8 {[%clk 0:00:53.7]} 28.
Qd2 {[%clk 0:02:22.4]} 28... Ra7 {[%clk 0:00:49.2]} 29. Rfe2 {[%clk 0:02:22.6]}
29... Rb7 {[%clk 0:00:46.1]} 30. Qg5 {[%clk 0:02:22]} 30... Qc6 {[%clk
0:00:37.8]} 31. Bg7 {[%clk 0:02:21.9]} 31... Bxg7 {[%clk 0:00:34.7]} 32. Rxe8+
{[%clk 0:02:21]} 32... Bxe8 {[%clk 0:00:34.5]} 33. hxg7 {[%clk 0:02:18.7]} 33...
Kxg7 {[%clk 0:00:35.4]} 34. Re7+ {[%clk 0:02:03.1]} 34... Rxe7 {[%clk
0:00:34.7]} 35. Qxe7+ {[%clk 0:02:04]} 35... Kg8 {[%clk 0:00:30.1]} 36. Ne5
{[%clk 0:01:37.5]} 36... Qb5 {[%clk 0:00:30.4]} 37. Qd8 {[%clk 0:01:35.2]} 37...
Kg7 {[%clk 0:00:23.9]} 38. a4 {[%clk 0:01:35]} 38... Qxa4 {[%clk 0:00:22.2]} 39.
Qxd5 {[%clk 0:01:20.2]} 39... Qd1+ {[%clk 0:00:17.2]} 40. Kh2 {[%clk 0:01:20.4]}
40... Qh5+ {[%clk 0:00:17.2]} 41. Kg3 {[%clk 0:01:20.9]} 41... Qg5+ {[%clk
0:00:17.7]} 42. Kf3 {[%clk 0:01:19.9]} 42... Qh5+ {[%clk 0:00:15.5]} 43. Kf2
{[%clk 0:01:09.7]} 43... Qh4+ {[%clk 0:00:15.2]} 44. Ke2 {[%clk 0:00:54.8]}
44... Qh5+ {[%clk 0:00:14.8]} 45. Nf3 {[%clk 0:00:48.4]} 45... Qh1 {[%clk
0:00:12.7]} 46. Kf2 {[%clk 0:00:47.1]} 46... Qc1 {[%clk 0:00:10.2]} 47. Qe5+
{[%clk 0:00:41.3]} 47... Kf8 {[%clk 0:00:03.2]} 48. Qf6+ {[%clk 0:00:37.7]}
48... Kg8 {[%clk 0:00:02.5]} 49. Qe7 {[%clk 0:00:35.1]} 49... Bf7 {[%clk
0:00:02.1]} 50. Qd8+ {[%clk 0:00:25.7]} 50... Kg7 {[%clk 0:00:01.8]} 51. Qb8
{[%clk 0:00:26.4]} 51... Qc2+ {[%clk 0:00:02]} 52. Kg3 {[%clk 0:00:26.6]} 52...
Qe4 {[%clk 0:00:02.2]} 53. Qc7 {[%clk 0:00:23.5]} 53... Qg4+ {[%clk 0:00:01.6]}
54. Kf2 {[%clk 0:00:23.1]} 54... Kg8 {[%clk 0:00:02.5]} 55. d5 {[%clk
0:00:20.2]} 55... Qe4 {[%clk 0:00:02]} 56. d6 {[%clk 0:00:20.2]} 56... Qc2+
{[%clk 0:00:02.2]} 57. Kg3 {[%clk 0:00:20.3]} 1-0

[Event "*** SCC Grand Prix: Titled Tuesday Blitz"]
[Site "Chess.com"]
[Date "2020.09.29"]
[Round "4"]
[White "The_Machine04"]
[Black "awesomevishesh"]
[Result "0-1"]
[WhiteElo "2286"]
[BlackElo "2433"]
[TimeControl "180+1"]
[EndTime "10:39:42 PDT"]
[Termination "awesomevishesh won by resignation"]

1. d4 {[%clk 0:03:00.9]} 1... Nf6 {[%clk 0:03:00.1]} 2. Bg5 {[%clk 0:02:56.6]}
2... g6 {[%clk 0:02:59.4]} 3. Bxf6 {[%clk 0:02:56.2]} 3... exf6 {[%clk
0:03:00.3]} 4. g3 {[%clk 0:02:56]} 4... d5 {[%clk 0:03:00.7]} 5. Bg2 {[%clk
0:02:56]} 5... c6 {[%clk 0:03:01.4]} 6. e3 {[%clk 0:02:56]} 6... Bd6 {[%clk
0:03:01.4]} 7. Ne2 {[%clk 0:02:47.2]} 7... h5 {[%clk 0:03:01.1]} 8. h4 {[%clk
0:02:46.3]} 8... Nd7 {[%clk 0:02:58.9]} 9. b3 {[%clk 0:02:35.4]} 9... f5 {[%clk
0:02:58.8]} 10. c4 {[%clk 0:02:29.8]} 10... dxc4 {[%clk 0:02:58.3]} 11. bxc4
{[%clk 0:02:28.9]} 11... Nf6 {[%clk 0:02:57.9]} 12. Nbc3 {[%clk 0:02:24.7]}
12... O-O {[%clk 0:02:57.3]} 13. O-O {[%clk 0:02:23.4]} 13... Be6 {[%clk
0:02:56.4]} 14. Qd3 {[%clk 0:02:20.9]} 14... Qe7 {[%clk 0:02:37.9]} 15. Rab1
{[%clk 0:02:13.9]} 15... Rab8 {[%clk 0:02:34.6]} 16. a4 {[%clk 0:01:51.1]} 16...
Rfd8 {[%clk 0:02:22.5]} 17. a5 {[%clk 0:01:42.3]} 17... a6 {[%clk 0:02:18.1]}
18. Rb2 {[%clk 0:01:19.5]} 18... Bc7 {[%clk 0:02:03.7]} 19. Ra1 {[%clk
0:01:10.1]} 19... Ne8 {[%clk 0:01:28.2]} 20. d5 {[%clk 0:00:47.1]} 20... Nf6
{[%clk 0:01:20.5]} 21. Rd2 {[%clk 0:00:30.3]} 21... Be5 {[%clk 0:01:14.7]} 22.
Rb1 {[%clk 0:00:24.9]} 22... Qc5 {[%clk 0:01:01.5]} 23. Qc2 {[%clk 0:00:15.2]}
23... cxd5 {[%clk 0:00:44.6]} 24. cxd5 {[%clk 0:00:15.2]} 24... Bd7 {[%clk
0:00:32.8]} 25. Qb3 {[%clk 0:00:10.9]} 25... Rdc8 {[%clk 0:00:28]} 26. Rc1
{[%clk 0:00:08.7]} 26... Qxa5 {[%clk 0:00:26.4]} 27. Rdc2 {[%clk 0:00:06.7]}
27... b5 {[%clk 0:00:21.6]} 28. Qa2 {[%clk 0:00:04.7]} 28... Qxa2 {[%clk
0:00:18.8]} 29. Nxa2 {[%clk 0:00:05.6]} 29... Rxc2 {[%clk 0:00:18.7]} 30. Rxc2
{[%clk 0:00:06.5]} 30... b4 {[%clk 0:00:18.9]} 31. Rc1 {[%clk 0:00:04.3]} 31...
b3 {[%clk 0:00:18.5]} 32. Nac3 {[%clk 0:00:04.5]} 32... b2 {[%clk 0:00:11.9]}
33. Rb1 {[%clk 0:00:04.5]} 33... Rb3 {[%clk 0:00:11.2]} 34. Na2 {[%clk
0:00:02.8]} 34... a5 {[%clk 0:00:07.9]} 35. Nd4 {[%clk 0:00:02.3]} 35... Bxd4
{[%clk 0:00:05.8]} 36. exd4 {[%clk 0:00:03.2]} 36... a4 {[%clk 0:00:06.1]} 37.
Bf1 {[%clk 0:00:03.6]} 37... a3 {[%clk 0:00:06]} 38. Bc4 {[%clk 0:00:03.2]}
38... Rb8 {[%clk 0:00:05.5]} 39. Kf1 {[%clk 0:00:02.6]} 39... Rc8 {[%clk
0:00:05.5]} 40. Bb3 {[%clk 0:00:02.3]} 40... Bb5+ {[%clk 0:00:05.4]} 41. Ke1
{[%clk 0:00:02.3]} 41... Bd3 {[%clk 0:00:06.1]} 42. Rd1 {[%clk 0:00:01.7]} 42...
b1=Q {[%clk 0:00:06.4]} 43. Rxb1 {[%clk 0:00:02.2]} 43... Bxb1 {[%clk
0:00:07.3]} 44. Kd2 {[%clk 0:00:02.9]} 44... Bxa2 {[%clk 0:00:07.5]} 45. Bxa2
{[%clk 0:00:03]} 45... Ne4+ {[%clk 0:00:08.4]} 46. Kd3 {[%clk 0:00:03]} 46...
Rc3+ {[%clk 0:00:07.7]} 47. Ke2 {[%clk 0:00:03]} 47... Rc2+ {[%clk 0:00:08.6]}
48. Ke3 {[%clk 0:00:03.6]} 48... Rxa2 {[%clk 0:00:09.2]} 49. Kf4 {[%clk
0:00:04.5]} 49... Rxf2+ {[%clk 0:00:08.9]} 50. Ke5 {[%clk 0:00:05.4]} 50... a2
{[%clk 0:00:08.8]} 51. d6 {[%clk 0:00:06.3]} 51... Nxd6 {[%clk 0:00:09]} 52. Kd5
{[%clk 0:00:06.4]} 52... a1=Q {[%clk 0:00:09.5]} 53. Kxd6 {[%clk 0:00:07.3]}
53... Qxd4+ {[%clk 0:00:09.3]} 0-1

[Event "*** SCC Grand Prix: Titled Tuesday Blitz"]
[Site "Chess.com"]
[Date "2020.09.29"]
[Round "4"]
[White "Loy_Konstantin"]
[Black "giantslayer83"]
[Result "1/2-1/2"]
[WhiteElo "2370"]
[BlackElo "2693"]
[TimeControl "180+1"]
[EndTime "10:39:43 PDT"]
[Termination "Game drawn by repetition"]

1. e4 {[%clk 0:03:00.9]} 1... c6 {[%clk 0:02:59.7]} 2. d4 {[%clk 0:03:00.3]}
2... d5 {[%clk 0:03:00.6]} 3. exd5 {[%clk 0:02:59.9]} 3... cxd5 {[%clk
0:03:00.9]} 4. c4 {[%clk 0:03:00.5]} 4... Nf6 {[%clk 0:02:59.8]} 5. Nc3 {[%clk
0:03:01]} 5... g6 {[%clk 0:03:00]} 6. cxd5 {[%clk 0:03:00.7]} 6... Bg7 {[%clk
0:03:00.3]} 7. Bc4 {[%clk 0:03:00.9]} 7... O-O {[%clk 0:03:00]} 8. Nge2 {[%clk
0:03:01.4]} 8... b6 {[%clk 0:02:55.7]} 9. Nf4 {[%clk 0:03:00.8]} 9... Na6 {[%clk
0:02:54.3]} 10. O-O {[%clk 0:02:59.3]} 10... Nc7 {[%clk 0:02:54.2]} 11. Re1
{[%clk 0:02:56.8]} 11... Bb7 {[%clk 0:02:54.3]} 12. Rb1 {[%clk 0:02:24.7]} 12...
Qd7 {[%clk 0:02:53.3]} 13. h3 {[%clk 0:02:21.4]} 13... Rad8 {[%clk 0:02:52]} 14.
Qf3 {[%clk 0:02:06.6]} 14... b5 {[%clk 0:02:30.2]} 15. Bb3 {[%clk 0:02:00.1]}
15... a5 {[%clk 0:02:24.7]} 16. a3 {[%clk 0:01:58.9]} 16... a4 {[%clk 0:02:10]}
17. Ba2 {[%clk 0:01:58.5]} 17... Ncxd5 {[%clk 0:02:10.2]} 18. Ncxd5 {[%clk
0:01:54.4]} 18... Nxd5 {[%clk 0:02:10.9]} 19. Nxd5 {[%clk 0:01:54.8]} 19... Bxd5
{[%clk 0:02:11.8]} 20. Bxd5 {[%clk 0:01:54.8]} 20... Qxd5 {[%clk 0:02:12.7]} 21.
Qxd5 {[%clk 0:01:54.5]} 21... Rxd5 {[%clk 0:02:13.6]} 22. Rxe7 {[%clk
0:01:54.5]} 22... Bxd4 {[%clk 0:02:14.2]} 23. Be3 {[%clk 0:01:48.4]} 23... Bxe3
{[%clk 0:02:06.1]} 24. Rxe3 {[%clk 0:01:49.3]} 24... Rc8 {[%clk 0:02:06.2]} 25.
Re2 {[%clk 0:01:39.9]} 25... Rd3 {[%clk 0:02:04.9]} 26. Rbe1 {[%clk 0:01:25.3]}
26... Kg7 {[%clk 0:02:04.3]} 27. f3 {[%clk 0:01:03.1]} 27... Rb3 {[%clk
0:02:00.4]} 28. Rd1 {[%clk 0:00:57]} 28... h5 {[%clk 0:02:00.1]} 29. Kf2 {[%clk
0:00:53.6]} 29... Rc4 {[%clk 0:01:55.7]} 30. Rdd2 {[%clk 0:00:51.7]} 30... h4
{[%clk 0:01:51.1]} 31. Re3 {[%clk 0:00:49.8]} 31... f5 {[%clk 0:01:14.3]} 32.
Rxb3 {[%clk 0:00:45]} 32... axb3 {[%clk 0:01:15.2]} 33. Ke3 {[%clk 0:00:44.8]}
33... Kf6 {[%clk 0:01:15.2]} 34. Kd3 {[%clk 0:00:42.3]} 34... Ke5 {[%clk
0:01:13.2]} 35. Ke3 {[%clk 0:00:34.4]} 35... g5 {[%clk 0:01:11]} 36. Rd3 {[%clk
0:00:21.6]} 36... f4+ {[%clk 0:01:07.2]} 37. Ke2 {[%clk 0:00:16.5]} 37... Rc2+
{[%clk 0:01:08.1]} 38. Rd2 {[%clk 0:00:13.8]} 38... Rc1 {[%clk 0:01:00.1]} 39.
Kd3 {[%clk 0:00:13.3]} 39... Kd5 {[%clk 0:00:57.6]} 40. Ke2+ {[%clk 0:00:08.8]}
40... Kc4 {[%clk 0:00:57.3]} 41. Kf2 {[%clk 0:00:04]} 41... b4 {[%clk
0:00:52.5]} 42. axb4 {[%clk 0:00:03.6]} 42... Kxb4 {[%clk 0:00:51.4]} 43. Ke2
{[%clk 0:00:04.5]} 43... Kc4 {[%clk 0:00:50.6]} 44. Kf2 {[%clk 0:00:04.4]} 44...
Rb1 {[%clk 0:00:36.5]} 45. Ke2 {[%clk 0:00:04.4]} 45... Rg1 {[%clk 0:00:36.9]}
46. Kf2 {[%clk 0:00:04.5]} 46... Rc1 {[%clk 0:00:30.3]} 47. Ke2 {[%clk
0:00:04.7]} 47... Ra1 {[%clk 0:00:24.3]} 48. Kf2 {[%clk 0:00:04.4]} 48... Ra6
{[%clk 0:00:23.7]} 49. Ke2 {[%clk 0:00:04.3]} 49... Re6+ {[%clk 0:00:23.7]} 50.
Kf2 {[%clk 0:00:04.6]} 50... Re5 {[%clk 0:00:23]} 51. Kf1 {[%clk 0:00:04.7]}
51... Kb4 {[%clk 0:00:19.5]} 52. Kf2 {[%clk 0:00:04.4]} 52... Kc5 {[%clk
0:00:19.4]} 53. Kf1 {[%clk 0:00:04.3]} 53... Kc4 {[%clk 0:00:19]} 54. Kf2 {[%clk
0:00:04.2]} 54... Re3 {[%clk 0:00:19.3]} 55. Kf1 {[%clk 0:00:02.9]} 55... Rd3
{[%clk 0:00:19.7]} 56. Ke2 {[%clk 0:00:02.1]} 56... Rxd2+ {[%clk 0:00:19.8]} 57.
Kxd2 {[%clk 0:00:03]} 57... Kd4 {[%clk 0:00:20.7]} 58. Ke2 {[%clk 0:00:03.4]}
58... Kc4 {[%clk 0:00:21.6]} 59. Kd2 {[%clk 0:00:03.9]} 59... Kd4 {[%clk
0:00:22]} 60. Ke2 {[%clk 0:00:04.3]} 60... Kc4 {[%clk 0:00:22.6]} 61. Kd2 {[%clk
0:00:04.7]} 1/2-1/2

[Event "*** SCC Grand Prix: Titled Tuesday Blitz"]
[Site "Chess.com"]
[Date "2020.09.29"]
[Round "4"]
[White "eCztery"]
[Black "zajka-molotok"]
[Result "0-1"]
[WhiteElo "2316"]
[BlackElo "2489"]
[TimeControl "180+1"]
[EndTime "10:39:45 PDT"]
[Termination "zajka-molotok won by checkmate"]

1. e4 {[%clk 0:03:00.9]} 1... d6 {[%clk 0:02:57.7]} 2. d4 {[%clk 0:03:00.2]}
2... Nf6 {[%clk 0:02:58]} 3. Nc3 {[%clk 0:03:00]} 3... g6 {[%clk 0:02:58.3]} 4.
f4 {[%clk 0:02:58.8]} 4... Bg7 {[%clk 0:02:58.4]} 5. Nf3 {[%clk 0:02:59.3]} 5...
Nc6 {[%clk 0:02:58.1]} 6. Bd3 {[%clk 0:02:59.6]} 6... O-O {[%clk 0:02:54.5]} 7.
e5 {[%clk 0:03:00.1]} 7... dxe5 {[%clk 0:02:52.2]} 8. dxe5 {[%clk 0:03:01]} 8...
Nd5 {[%clk 0:02:35.7]} 9. Nxd5 {[%clk 0:03:01.5]} 9... Qxd5 {[%clk 0:02:35.4]}
10. Qe2 {[%clk 0:03:02.4]} 10... Nd4 {[%clk 0:01:55.6]} 11. Nxd4 {[%clk
0:02:42.8]} 11... Qxd4 {[%clk 0:01:56.5]} 12. Be3 {[%clk 0:02:38]} 12... Qxb2
{[%clk 0:01:52.9]} 13. O-O {[%clk 0:02:38.3]} 13... Qa3 {[%clk 0:01:48.8]} 14.
Qf3 {[%clk 0:02:29.3]} 14... c6 {[%clk 0:01:44.3]} 15. Rfb1 {[%clk 0:02:21.9]}
15... f6 {[%clk 0:01:23.7]} 16. Bd4 {[%clk 0:01:56.6]} 16... Qa4 {[%clk
0:01:22]} 17. Bc5 {[%clk 0:01:24]} 17... fxe5 {[%clk 0:01:18.5]} 18. Rb4 {[%clk
0:01:20.4]} 18... Qa5 {[%clk 0:01:12.5]} 19. Bxe7 {[%clk 0:01:20.4]} 19... Rxf4
{[%clk 0:01:00.6]} 20. Rxf4 {[%clk 0:01:11.4]} 20... exf4 {[%clk 0:01:01.5]} 21.
Qxf4 {[%clk 0:01:06.4]} 21... Be6 {[%clk 0:00:43.9]} 22. Rf1 {[%clk 0:01:03.9]}
22... Qe5 {[%clk 0:00:31.5]} 23. Qd2 {[%clk 0:00:47.4]} 23... Bd5 {[%clk
0:00:27.3]} 24. Ba3 {[%clk 0:00:40.9]} 24... Re8 {[%clk 0:00:25.4]} 25. h3
{[%clk 0:00:38.4]} 25... b6 {[%clk 0:00:18.1]} 26. Qd1 {[%clk 0:00:31.2]} 26...
Qe3+ {[%clk 0:00:17.2]} 27. Rf2 {[%clk 0:00:22.3]} 27... Bd4 {[%clk 0:00:16.8]}
28. Qf1 {[%clk 0:00:16.4]} 28... Qxf2+ {[%clk 0:00:16.7]} 29. Qxf2 {[%clk
0:00:17.3]} 29... Re1+ {[%clk 0:00:16.5]} 30. Bf1 {[%clk 0:00:15.9]} 30... Bxf2+
{[%clk 0:00:16.6]} 31. Kxf2 {[%clk 0:00:16.7]} 31... Ra1 {[%clk 0:00:16.6]} 32.
Ke3 {[%clk 0:00:12.7]} 32... Rxa2 {[%clk 0:00:16.7]} 33. Bb4 {[%clk 0:00:13.5]}
33... Rxc2 {[%clk 0:00:16.3]} 34. g4 {[%clk 0:00:14.4]} 34... Rb2 {[%clk
0:00:16.1]} 35. Bc3 {[%clk 0:00:13.6]} 35... Rb3 {[%clk 0:00:16.4]} 36. Kd2
{[%clk 0:00:14.5]} 36... a5 {[%clk 0:00:16]} 37. Bd3 {[%clk 0:00:15]} 37... a4
{[%clk 0:00:15.8]} 38. Bc2 {[%clk 0:00:15.5]} 38... Ra3 {[%clk 0:00:12.8]} 39.
h4 {[%clk 0:00:16.1]} 39... Ra2 {[%clk 0:00:12.5]} 40. Kc1 {[%clk 0:00:14.4]}
40... b5 {[%clk 0:00:12.7]} 41. Bb2 {[%clk 0:00:10.8]} 41... b4 {[%clk
0:00:12.1]} 42. Kb1 {[%clk 0:00:10.9]} 42... a3 {[%clk 0:00:12.2]} 43. Bd4
{[%clk 0:00:10.4]} 43... b3 {[%clk 0:00:11.9]} 44. Bd3 {[%clk 0:00:10.5]} 44...
Rh2 {[%clk 0:00:11.8]} 45. Be4 {[%clk 0:00:10.2]} 45... Rxh4 {[%clk 0:00:11.3]}
46. Kc1 {[%clk 0:00:11.1]} 46... Bxe4 {[%clk 0:00:11.4]} 47. Kd2 {[%clk
0:00:11.2]} 47... b2 {[%clk 0:00:11.7]} 48. Ke3 {[%clk 0:00:12.1]} 48... b1=Q
{[%clk 0:00:11.7]} 49. Kf4 {[%clk 0:00:12.5]} 49... Qd3 {[%clk 0:00:11.9]} 50.
Kg5 {[%clk 0:00:13.4]} 50... Qxd4 {[%clk 0:00:11.9]} 51. Kxh4 {[%clk 0:00:13.8]}
51... Qg1 {[%clk 0:00:11.5]} 52. Kg5 {[%clk 0:00:14.7]} 52... Qe3+ {[%clk
0:00:11.4]} 53. Kh4 {[%clk 0:00:13.8]} 53... h6 {[%clk 0:00:11.3]} 54. g5 {[%clk
0:00:13.4]} 54... Qxg5+ {[%clk 0:00:11.5]} 55. Kh3 {[%clk 0:00:13.9]} 55... Qg2+
{[%clk 0:00:11.1]} 56. Kh4 {[%clk 0:00:14.3]} 56... g5+ {[%clk 0:00:11.7]} 57.
Kh5 {[%clk 0:00:13.4]} 57... Qh3# {[%clk 0:00:12.4]} 0-1

[Event "*** SCC Grand Prix: Titled Tuesday Blitz"]
[Site "Chess.com"]
[Date "2020.09.29"]
[Round "4"]
[White "GianmarcoVaR"]
[Black "Fischerev7"]
[Result "0-1"]
[WhiteElo "2531"]
[BlackElo "2356"]
[TimeControl "180+1"]
[EndTime "10:39:48 PDT"]
[Termination "Fischerev7 won on time"]

1. d4 {[%clk 0:02:48.3]} 1... Nf6 {[%clk 0:02:58.8]} 2. c4 {[%clk 0:02:46.2]}
2... e6 {[%clk 0:02:58.1]} 3. g3 {[%clk 0:02:45.9]} 3... Bb4+ {[%clk 0:02:56.8]}
4. Bd2 {[%clk 0:02:44.9]} 4... a5 {[%clk 0:02:56.2]} 5. Bg2 {[%clk 0:02:41.7]}
5... O-O {[%clk 0:02:54.3]} 6. Nf3 {[%clk 0:02:26.7]} 6... d5 {[%clk 0:02:53.1]}
7. Qc2 {[%clk 0:02:13.8]} 7... b6 {[%clk 0:02:40.1]} 8. O-O {[%clk 0:02:07.7]}
8... Ba6 {[%clk 0:02:27.2]} 9. Ne5 {[%clk 0:01:32.9]} 9... c5 {[%clk 0:02:11.8]}
10. dxc5 {[%clk 0:01:02.7]} 10... Bxc5 {[%clk 0:02:01.9]} 11. Nc3 {[%clk
0:00:36.8]} 11... Bd4 {[%clk 0:01:48.2]} 12. Bf4 {[%clk 0:00:12.8]} 12... Bxe5
{[%clk 0:01:41.6]} 13. Bxe5 {[%clk 0:00:13]} 13... Bxc4 {[%clk 0:01:41]} 14.
Rfd1 {[%clk 0:00:04.6]} 14... Nc6 {[%clk 0:01:40.2]} 15. Bf4 {[%clk 0:00:04.1]}
15... Nb4 {[%clk 0:01:39.1]} 16. Qd2 {[%clk 0:00:04]} 16... h6 {[%clk
0:01:37.1]} 17. b3 {[%clk 0:00:03.4]} 17... Ba6 {[%clk 0:01:35.9]} 18. Rac1
{[%clk 0:00:02.9]} 18... Rc8 {[%clk 0:01:35.4]} 19. a3 {[%clk 0:00:02.9]} 19...
Nc6 {[%clk 0:01:32]} 20. Be3 {[%clk 0:00:03.2]} 20... Qc7 {[%clk 0:01:18.7]} 21.
h3 {[%clk 0:00:03.3]} 21... Rfd8 {[%clk 0:01:15.5]} 22. Bf4 {[%clk 0:00:03.5]}
22... Qb7 {[%clk 0:01:11.9]} 23. g4 {[%clk 0:00:03]} 23... Ne7 {[%clk
0:01:05.7]} 24. g5 {[%clk 0:00:03]} 24... hxg5 {[%clk 0:01:03.7]} 25. Bxg5
{[%clk 0:00:03.9]} 25... Ng6 {[%clk 0:01:02.9]} 26. Bxf6 {[%clk 0:00:03.8]}
26... gxf6 {[%clk 0:01:03.8]} 27. h4 {[%clk 0:00:03.7]} 27... Nxh4 {[%clk
0:01:01]} 28. Qf4 {[%clk 0:00:03.9]} 28... Ng6 {[%clk 0:00:58.7]} 29. Qxf6
{[%clk 0:00:03.3]} 29... Qe7 {[%clk 0:00:59]} 30. Qf3 {[%clk 0:00:02.4]} 30...
Qg5 {[%clk 0:00:57.6]} 31. e3 {[%clk 0:00:01.9]} 31... Ne5 {[%clk 0:00:55.3]}
32. Qh3 {[%clk 0:00:02]} 32... Qg4 {[%clk 0:00:53.2]} 33. f4 {[%clk 0:00:01.8]}
33... Qxh3 {[%clk 0:00:51.4]} 34. Bxh3 {[%clk 0:00:02.7]} 34... Nd3 {[%clk
0:00:52.1]} 35. Rc2 {[%clk 0:00:03.1]} 35... Nc5 {[%clk 0:00:51]} 36. b4 {[%clk
0:00:02.4]} 36... axb4 {[%clk 0:00:50.4]} 37. axb4 {[%clk 0:00:03.3]} 37... Ne4
{[%clk 0:00:51]} 38. Rdc1 {[%clk 0:00:03.8]} 38... Bd3 {[%clk 0:00:48.2]} 39.
Nxe4 {[%clk 0:00:04.2]} 39... Bxc2 {[%clk 0:00:46.2]} 40. Ng5 {[%clk 0:00:02.3]}
40... Bg6 {[%clk 0:00:43.8]} 41. Ra1 {[%clk 0:00:01.2]} 41... Rc3 {[%clk
0:00:42.4]} 42. Nxe6 {[%clk 0:00:01.4]} 42... fxe6 {[%clk 0:00:41.4]} 43. Bxe6+
{[%clk 0:00:01.8]} 43... Kg7 {[%clk 0:00:42.2]} 44. Ra7+ {[%clk 0:00:01.9]}
44... Kf6 {[%clk 0:00:41.6]} 45. Bg4 {[%clk 0:00:01.1]} 45... Rxe3 {[%clk
0:00:41]} 46. Rb7 {[%clk 0:00:01.7]} 46... Rd6 {[%clk 0:00:39.6]} 47. Kf2 {[%clk
0:00:02.2]} 47... Re4 {[%clk 0:00:39.4]} 48. b5 {[%clk 0:00:01.7]} 48... Rxf4+
{[%clk 0:00:39.3]} 49. Kg3 {[%clk 0:00:02.5]} 49... Rb4 {[%clk 0:00:39.5]} 50.
Bf3 {[%clk 0:00:02.9]} 50... Rb3 {[%clk 0:00:38]} 51. Kg4 {[%clk 0:00:03.2]}
51... Bh5+ {[%clk 0:00:35]} 52. Kh4 {[%clk 0:00:02]} 52... Bxf3 {[%clk
0:00:32.9]} 53. Rb8 {[%clk 0:00:01.7]} 53... Be4 {[%clk 0:00:32.5]} 54. Kg4
{[%clk 0:00:01.6]} 54... Ke5 {[%clk 0:00:32.5]} 55. Re8+ {[%clk 0:00:01.1]}
55... Kd4 {[%clk 0:00:32.5]} 56. Rg8 {[%clk 0:00:01.7]} 56... Rxb5 {[%clk
0:00:32.1]} 57. Kf4 {[%clk 0:00:02.3]} 57... Rf6+ {[%clk 0:00:31.3]} 58. Kg5
{[%clk 0:00:02.4]} 58... Rg6+ {[%clk 0:00:31.4]} 59. Kf4 {[%clk 0:00:03]} 59...
Rf6+ {[%clk 0:00:27.2]} 60. Kg5 {[%clk 0:00:03]} 60... Rf1 {[%clk 0:00:26.9]}
61. Ra8 {[%clk 0:00:01.5]} 61... Rb4 {[%clk 0:00:25.6]} 0-1